bitfinex-derivatives/quotes_BTCF0:USTF0_20241021
["timestamp","ask_amount","ask_price","bid_price","bid_amount"]
[1729470205361,0.171934,69525.0,69523.0,0.071936]
[1729470206069,0.171934,69525.0,69517.0,0.0383]
[1729470206070,0.12295677,69525.0,69517.0,0.0383]
[1729470206256,0.19489077,69525.0,69521.0,0.071938]
[1729470207363,0.19489077,69525.0,69513.0,0.04259021]
[1729470207364,0.12295677,69525.0,69513.0,0.04259021]
[1729470207571,0.3608,69518.0,69513.0,0.04259021]
[1729470207761,0.3608,69518.0,69512.0,0.071947]
[1729470207762,0.3608,69518.0,69512.0,0.04259021]
[1729470208066,0.0384,69523.0,69514.0,0.071945]
[1729470208462,0.071939,69520.0,69514.0,0.071945]
[1729470208861,0.0384,69523.0,69516.0,0.071943]
[1729470209169,0.3608,69519.0,69515.0,0.11453421]
[1729470209367,0.3608,69519.0,69515.0,0.04259021]
[1729470209570,0.3608,69519.0,69518.0,0.071941]
[1729470209963,0.3608,69519.0,69518.0,0.1143806]
[1729470211168,0.3608,69519.0,69518.0,0.1286258]
[1729470211367,0.3608,69519.0,69518.0,0.12862631]
[1729470211566,0.3608,69519.0,69518.0,0.071941]
[1729470217168,0.0384,69523.0,69518.0,0.071941]
[1729470217373,0.0384,69523.0,69520.0,0.071939]
[1729470217572,0.06525677,69525.0,69518.0,0.07126778]
[1729470217773,0.3608,69554.0,69540.0,0.071919]
[1729470218075,0.3608,69554.0,69540.0,0.432719]
[1729470218373,0.3608,69544.0,69537.0,0.07089159]
[1729470218670,0.0733,69548.0,69537.0,0.07089159]
[1729470218975,0.071919,69540.0,69538.0,0.07089159]
[1729470219273,0.3608,69546.0,69536.0,0.07089159]
[1729470219469,0.3608,69546.0,69540.0,0.071919]
[1729470219660,0.3608,69546.0,69540.0,0.432719]
[1729470219859,0.0688351,69549.0,69540.0,0.432719]
[1729470220170,0.0688351,69549.0,69536.0,0.07089159]
[1729470220362,0.0688351,69549.0,69531.0,0.02302656]
[1729470220363,0.071914,69545.0,69533.0,0.07089159]
[1729470220564,0.05015536,69541.0,69537.0,0.071921]
[1729470220765,0.05015536,69541.0,69538.0,0.07192]
[1729470220974,0.04815536,69541.0,69534.0,0.3608]
[1729470221171,0.05015536,69541.0,69534.0,0.432725]
[1729470221472,0.05015536,69541.0,69540.0,0.05658565]
[1729470221675,0.05015536,69541.0,69537.0,0.05658565]
[1729470221864,0.41095536,69541.0,69538.0,0.05658815]
[1729470222062,0.41095536,69541.0,69534.0,0.3608]
[1729470222063,0.41095536,69541.0,69537.0,0.071921]
[1729470222267,0.05015536,69541.0,69540.0,0.04244131]
[1729470222567,0.04815536,69541.0,69540.0,0.071919]
[1729470222767,0.05015536,69541.0,69540.0,0.12850715]
[1729470222967,0.0688351,69549.0,69535.0,0.07089159]
[1729470223167,0.0688351,69549.0,69546.0,0.071912]
[1729470223362,0.0688351,69549.0,69546.0,0.1143374]
[1729470223573,0.0688351,69549.0,69546.0,0.071912]
[1729470223771,0.0688351,69549.0,69546.0,0.1143374]
[1729470223973,1.5,69548.0,69546.0,0.0424254]
[1729470224175,1.5,69548.0,69547.0,0.071911]
[1729470224667,1.5,69548.0,69545.0,0.0424254]
[1729470224977,1.5,69548.0,69544.0,0.0424254]
[1729470225272,1.5,69548.0,69544.0,0.1143394]
[1729470226170,0.03901419,69558.0,69557.0,0.071901]
[1729470226364,0.3608,69573.0,69557.0,0.071901]
[1729470226365,0.3608,69586.0,69557.0,0.3608]
[1729470226669,0.10758,69578.0,69567.0,0.04234176]
[1729470226973,0.10758,69578.0,69571.0,0.071886]
[1729470226974,0.0357,69578.0,69571.0,0.071886]
[1729470227363,0.3608,69579.0,69573.0,0.071884]
[1729470227769,0.07764399,69583.0,69574.0,0.4312]
[1729470228474,0.07764399,69583.0,69571.0,0.04234176]
[1729470228475,0.03275493,69583.0,69572.0,0.071885]
[1729470228675,0.035,69582.0,69574.0,0.04224145]
[1729470228872,0.035,69582.0,69575.0,0.04224145]
[1729470229174,0.035,69582.0,69571.0,0.3608]
[1729470229175,0.035,69582.0,69573.0,0.04224145]
[1729470229376,0.035,69582.0,69574.0,0.04224145]
[1729470229680,0.035,69582.0,69576.0,0.071881]
[1729470230265,0.036,69582.0,69576.0,0.071881]
[1729470230472,1.758e-05,69582.0,69576.0,0.071881]
[1729470231380,1.758e-05,69582.0,69577.0,0.07188]
[1729470231982,0.03275493,69583.0,69578.0,0.071879]
[1729470232170,0.03275493,69583.0,69577.0,0.3608]
[1729470232371,0.03275493,69583.0,69581.0,0.071875]
[1729470232879,0.03275493,69583.0,69582.0,0.43116]
[1729470233575,0.03275493,69583.0,69577.0,0.3616]
[1729470233775,0.03275493,69583.0,69571.0,0.3608]
[1729470233776,0.03375493,69583.0,69581.0,0.012]
[1729470234086,0.03375493,69583.0,69566.0,0.04224145]
[1729470234087,0.3608,69582.0,69566.0,0.04224145]
[1729470234479,0.3608,69582.0,69568.0,0.071889]
[1729470234679,0.3608,69582.0,69567.0,0.04224145]
[1729470234680,0.3608,69574.0,69567.0,0.04224145]
[1729470234978,0.0736,69573.0,69565.0,0.11413345]
[1729470235175,0.0736,69573.0,69565.0,0.071892]
[1729470235385,0.3608,69568.0,69564.0,0.00072]
[1729470235579,0.071894,69564.0,69554.0,0.04224145]
[1729470235782,0.3608,69568.0,69554.0,0.3608]
[1729470236087,0.071895,69563.0,69552.0,0.0021561]
[1729470236279,0.3608,69560.0,69552.0,0.0021561]
[1729470236672,0.3608,69560.0,69544.0,0.05645568]
[1729470236673,0.3608,69553.0,69540.0,0.04224145]
[1729470236996,0.071909,69550.0,69536.0,0.04224145]
[1729470237284,0.0731,69552.0,69525.0,0.00215749]
[1729470237285,0.3608,69539.0,69530.0,0.071928]
[1729470237580,0.3608,69539.0,69526.0,0.04224145]
[1729470237581,0.071924,69535.0,69526.0,0.04224145]
[1729470237781,0.071924,69535.0,69525.0,0.00215749]
[1729470237782,0.3608,69539.0,69529.0,0.07193]
[1729470238490,0.3608,69539.0,69525.0,0.04439894]
[1729470238690,0.3608,69533.0,69526.0,0.04224145]
[1729470238877,0.02218514,69544.0,69529.0,0.001]
[1729470238878,0.071916,69543.0,69529.0,0.001]
[1729470239079,0.3608,69539.0,69529.0,0.001]
[1729470239579,0.3608,69539.0,69530.0,0.071929]
[1729470239788,0.3628,69539.0,69530.0,0.071929]
[1729470239982,0.3628,69539.0,69525.0,0.00215749]
[1729470240186,0.3608,69532.0,69528.0,0.071931]
[1729470240485,0.3608,69532.0,69525.0,0.00215749]
[1729470240486,0.3628,69539.0,69529.0,0.071929]
[1729470241083,0.3628,69539.0,69531.0,0.071928]
[1729470241480,0.3608,69539.0,69531.0,0.071928]
[1729470241786,0.3608,69539.0,69529.0,0.004]
[1729470242086,0.3608,69547.0,69535.0,0.071923]
[1729470242791,1.5,69546.0,69535.0,0.071923]
[1729470243091,1.5,69546.0,69531.0,0.004]
[1729470243092,0.38302152,69547.0,69537.0,0.071922]
[1729470243281,0.004,69547.0,69545.0,0.071913]
[1729470244197,0.004,69547.0,69546.0,0.3608]
[1729470244382,0.004,69547.0,69546.0,0.79216]
[1729470244780,0.0367,69552.0,69551.0,0.071907]
[1729470245490,0.0367,69552.0,69546.0,0.3608]
[1729470245491,0.071897,69561.0,69546.0,0.436712]
[1729470245689,0.071897,69561.0,69546.0,0.3648]
[1729470245989,0.3608,69549.0,69546.0,0.004]
[1729470246390,0.3608,69556.0,69549.0,0.071909]
[1729470246797,0.3608,69556.0,69546.0,0.004]
[1729470247197,0.3608,69550.0,69546.0,0.004]
[1729470247600,0.3608,69550.0,69540.0,0.071918]
[1729470247785,0.3608,69550.0,69539.0,0.3608]
[1729470247993,0.3608,69540.0,69531.0,0.071928]
[1729470248191,0.3608,69534.0,69531.0,0.071928]
[1729470248798,0.3608,69534.0,69525.0,0.00215749]
[1729470249100,0.3608,69534.0,69525.0,0.07409049]
[1729470249295,0.3608,69534.0,69525.0,0.00215749]
[1729470249493,0.071927,69532.0,69525.0,0.00215749]
[1729470249694,0.3608,69527.0,69516.0,0.071943]
[1729470249893,0.3608,69517.0,69510.0,0.071949]
[1729470250093,0.3608,69517.0,69505.0,0.00215811]
[1729470250490,0.3608,69510.0,69505.0,0.00215811]
[1729470250687,0.071953,69507.0,69505.0,0.00215811]
[1729470251092,0.0359,69506.0,69498.0,0.3608]
[1729470252095,0.0359,69506.0,69498.0,0.432762]
[1729470252493,0.0389,69506.0,69498.0,0.432762]
[1729470253300,0.0389,69506.0,69498.0,0.3608]
[1729470253503,0.0389,69506.0,69501.0,0.071959]
[1729470254301,1.5381,69505.0,69501.0,0.071959]
[1729470254603,0.0381,69505.0,69503.0,0.071956]
[1729470255902,0.0381,69505.0,69499.0,0.071961]
[1729470256099,0.0381,69505.0,69503.0,0.003]
[1729470257292,0.0381,69505.0,69503.0,0.005]
[1729470257497,0.0381,69505.0,69503.0,0.002]
[1729470257698,0.0586589,69515.0,69503.0,0.004]
[1729470257893,0.1306039,69515.0,69503.0,0.004]
[1729470258101,0.071947,69513.0,69503.0,0.004]
[1729470258306,0.071947,69513.0,69503.0,0.005]
[1729470258497,0.0586589,69515.0,69503.0,0.007]
[1729470258699,0.07195,69510.0,69503.0,0.007]
[1729470258901,0.07195,69510.0,69503.0,0.004]
[1729470258902,0.43275,69510.0,69503.0,0.004]
[1729470259106,0.3608,69504.0,69503.0,0.004]
[1729470259403,0.3608,69504.0,69487.0,0.071973]
[1729470259404,0.07196,69500.0,69487.0,0.071973]
[1729470259605,0.07196,69500.0,69483.0,0.3608]
[1729470259606,0.07196,69500.0,69488.0,0.071972]
[1729470259807,0.3608,69504.0,69488.0,0.071972]
[1729470260009,1.5,69503.0,69477.0,0.3608]
[1729470260320,0.3608,69496.0,69484.0,0.071976]
[1729470260507,0.3608,69496.0,69477.0,0.3608]
[1729470260508,0.3608,69496.0,69485.0,0.3608]
[1729470260811,0.3608,69496.0,69488.0,0.084971]
[1729470261604,0.3618,69496.0,69488.0,0.071971]
[1729470262006,0.0363,69495.0,69488.0,0.071971]
[1729470262807,0.0363,69495.0,69488.0,0.006]
[1729470263002,0.0363,69495.0,69492.0,0.071968]
[1729470263208,0.3971,69495.0,69485.0,0.007]
[1729470263605,0.3981,69495.0,69488.0,0.008]
[1729470263813,0.3981,69495.0,69488.0,0.014]
[1729470264211,0.071967,69493.0,69488.0,0.014]
[1729470264407,0.3981,69495.0,69488.0,0.008]
[1729470264708,0.3991,69495.0,69488.0,0.008]
[1729470265007,0.3981,69495.0,69485.0,0.008]
[1729470265209,0.3608,69486.0,69484.0,0.04238862]
[1729470265400,0.3608,69486.0,69471.0,0.05645654]
[1729470265401,0.071982,69479.0,69471.0,0.05645654]
[1729470265600,0.071983,69478.0,69469.0,0.05861576]
[1729470265798,0.3608,69479.0,69469.0,0.00215922]
[1729470266005,0.071985,69476.0,69469.0,0.00215922]
[1729470266206,0.071985,69476.0,69469.0,0.05861576]
[1729470266516,0.071986,69475.0,69469.0,0.00215922]
[1729470266703,0.108886,69475.0,69469.0,0.00215922]
[1729470266899,0.071988,69473.0,69469.0,0.00215922]
[1729470267103,0.071988,69473.0,69469.0,0.05861576]
[1729470267304,0.071988,69473.0,69469.0,0.00215922]
[1729470267905,0.0369,69475.0,69469.0,0.00215922]
[1729470268415,0.0369,69475.0,69469.0,0.05861576]
[1729470268613,0.0369,69475.0,69469.0,0.05961576]
[1729470268912,0.0369,69475.0,69473.0,0.071987]
[1729470269311,0.0369,69475.0,69471.0,0.05645654]
[1729470269717,0.0369,69475.0,69471.0,0.12844554]
[1729470270209,0.0369,69475.0,69471.0,0.05645654]
[1729470270411,0.071996,69465.0,69464.0,0.05645654]
[1729470270610,0.071996,69465.0,69461.0,0.05645654]
[1729470270611,0.432796,69465.0,69461.0,0.05645654]
[1729470270810,0.3608,69465.0,69459.0,0.05645654]
[1729470271014,0.3608,69465.0,69456.0,0.00215965]
[1729470271311,0.3608,69459.0,69456.0,0.00215965]
[1729470272816,1.5,69458.0,69456.0,0.00315965]
[1729470273206,1.44953527,69458.0,69456.0,0.13162119]
[1729470273410,0.001,69459.0,69456.0,0.13162119]
[1729470273806,0.002,69459.0,69456.0,0.13162119]
[1729470274219,0.002,69459.0,69456.0,0.07516465]
[1729470274529,0.00108,69463.0,69456.0,0.07516465]
[1729470274716,0.001,69459.0,69456.0,0.07516465]
[1729470274922,0.001,69459.0,69456.0,0.00315965]
[1729470275123,0.001,69459.0,69456.0,0.00215965]
[1729470275307,0.03695309,69462.0,69456.0,0.00315965]
[1729470276816,0.0364,69464.0,69456.0,0.00315965]
[1729470276817,0.072001,69461.0,69456.0,0.00315965]
[1729470277120,0.001,69459.0,69456.0,0.00515965]
[1729470277619,0.001,69459.0,69456.0,0.00415965]
[1729470277815,0.0364,69464.0,69456.0,0.00515965]
[1729470278021,0.432805,69457.0,69456.0,0.00515965]
[1729470278218,0.432805,69457.0,69456.0,0.00415965]
[1729470278424,0.432805,69457.0,69456.0,0.00315965]
[1729470278717,0.432805,69457.0,69456.0,0.003]
[1729470279017,0.432805,69457.0,69456.0,0.002]
[1729470280117,0.433805,69457.0,69456.0,0.002]
[1729470280320,0.3618,69457.0,69456.0,0.002]
[1729470280725,0.3628,69457.0,69456.0,0.003]
[1729470281515,0.002,69457.0,69456.0,0.003]
[1729470281821,0.3608,69472.0,69456.0,0.90391436]
[1729470282119,0.17152,69480.0,69456.0,0.90391436]
[1729470282120,0.3608,69478.0,69469.0,0.05652895]
[1729470282424,0.3608,69478.0,69471.0,0.05652895]
[1729470282819,0.071981,69480.0,69470.0,0.12851995]
[1729470283019,0.432781,69480.0,69471.0,0.12851795]
[1729470283221,0.002,69472.0,69466.0,0.071995]
[1729470283617,0.108887,69475.0,69470.0,0.05654466]
[1729470283818,0.108887,69475.0,69469.0,0.05654466]
[1729470284124,0.108887,69475.0,69462.0,0.3608]
[1729470284125,0.3608,69473.0,69468.0,0.05654466]
[1729470284325,0.3608,69473.0,69462.0,0.3608]
[1729470284326,0.3608,69473.0,69467.0,0.0565704]
[1729470284516,0.071998,69463.0,69462.0,0.00072]
[1729470284718,0.071998,69463.0,69459.0,0.0565704]
[1729470284719,0.072001,69460.0,69459.0,0.0565704]
[1729470284918,0.3608,69463.0,69458.0,0.0565704]
[1729470284919,0.072002,69459.0,69458.0,0.0565704]
[1729470285120,0.072004,69458.0,69457.0,0.0565704]
[1729470285318,0.072004,69458.0,69453.0,0.07066119]
[1729470285319,0.0372,69458.0,69453.0,0.07066119]
[1729470285522,0.072005,69457.0,69453.0,0.07066119]
[1729470286326,0.072005,69457.0,69454.0,0.17935349]
[1729470286526,0.072005,69457.0,69455.0,0.07066119]
[1729470286727,0.072005,69457.0,69454.0,0.07066119]
[1729470286927,0.072005,69457.0,69455.0,0.17934768]
[1729470287128,0.072005,69457.0,69450.0,0.44548482]
[1729470287129,0.072005,69457.0,69454.0,0.07066119]
[1729470287325,0.072005,69457.0,69456.0,0.07066119]
[1729470287625,0.072005,69457.0,69455.0,0.07066119]
[1729470287626,0.073005,69457.0,69455.0,0.07066119]
[1729470287819,1.5,69456.0,69455.0,0.07066119]
[1729470288014,1.572006,69456.0,69455.0,0.07066119]
[1729470288225,1.572006,69456.0,69454.0,0.001]
[1729470288226,1.5,69456.0,69454.0,0.001]
[1729470288432,1.572006,69456.0,69455.0,0.05669514]
[1729470288630,1.572006,69456.0,69454.0,0.006]
[1729470288631,0.072007,69455.0,69454.0,0.06269514]
[1729470289319,1.572007,69455.0,69454.0,0.006]
[1729470289833,0.072008,69454.0,69453.0,0.05672256]
[1729470290223,1.501,69455.0,69452.0,0.05672256]
[1729470290224,0.072009,69453.0,69452.0,0.05672256]
[1729470290829,1.502,69455.0,69446.0,0.07086116]
[1729470290830,1.503,69455.0,69446.0,0.07086116]
[1729470291135,1.503,69455.0,69429.0,0.00072]
[1729470291136,0.072033,69430.0,69429.0,0.00072]
[1729470291428,0.072038,69425.0,69421.0,0.3608]
[1729470292023,0.072038,69425.0,69416.0,0.08468482]
[1729470292024,0.3608,69422.0,69416.0,0.08468482]
[1729470292223,0.3608,69422.0,69413.0,0.03562]
[1729470292224,0.3608,69422.0,69413.0,0.10695]
[1729470292423,0.3608,69422.0,69414.0,0.10814688]
[1729470292624,0.3608,69422.0,69415.0,0.10814688]
[1729470292829,0.3608,69422.0,69416.0,0.10814688]
[1729470293035,0.072035,69428.0,69417.0,0.18019288]
[1729470293240,0.072035,69428.0,69417.0,0.072046]
[1729470293530,0.072035,69428.0,69413.0,0.0349]
[1729470293737,0.0379,69429.0,69414.0,0.10799977]
[1729470294030,0.3618,69430.0,69418.0,0.3608]
[1729470294235,0.3608,69430.0,69413.0,0.11958482]
[1729470294528,0.599193,69430.0,69420.0,0.072043]
[1729470294722,1.5,69429.0,69420.0,0.072043]
[1729470294926,0.001,69422.0,69420.0,0.072043]
[1729470296334,0.001,69422.0,69421.0,0.072042]
[1729470296729,0.3608,69430.0,69427.0,0.072036]
[1729470297052,0.3608,69430.0,69427.0,0.072035]
[1729470297425,0.001,69437.0,69426.0,0.3608]
[1729470297626,0.1664,69443.0,69436.0,0.072026]
[1729470299132,0.432816,69446.0,69427.0,0.0396]
[1729470299332,0.072017,69445.0,69435.0,0.072027]
[1729470299734,0.003,69437.0,69435.0,0.072027]
[1729470300030,0.003,69437.0,69432.0,0.07203]
[1729470300232,0.003,69437.0,69427.0,0.0376]
[1729470300433,1.5,69447.0,69422.0,0.07204]
[1729470300434,0.432831,69432.0,69422.0,0.07204]
[1729470300734,0.432831,69432.0,69421.0,0.072042]
[1729470300935,0.432831,69432.0,69415.0,0.08468482]
[1729470301734,0.432831,69432.0,69414.0,0.12028482]
[1729470301735,0.3608,69432.0,69414.0,0.12028482]
[1729470302041,0.072027,69435.0,69424.0,0.072038]
[1729470302229,0.0358,69436.0,69414.0,0.12028482]
[1729470302439,0.0358,69436.0,69425.0,0.072037]
[1729470302739,0.0358,69436.0,69415.0,0.08468482]
[1729470303036,0.005,69437.0,69431.0,0.072031]
[1729470303245,0.002,69437.0,69432.0,0.038]
[1729470303848,0.3608,69441.0,69432.0,0.038]
[1729470304050,0.003,69436.0,69435.0,0.072027]
[1729470305041,0.002,69437.0,69435.0,0.072027]
[1729470305238,0.005,69437.0,69435.0,0.072027]
[1729470305435,0.003,69437.0,69432.0,0.03872]
[1729470305640,0.002,69436.0,69432.0,0.038]
[1729470305842,0.002,69436.0,69432.0,0.11003]
[1729470306437,0.002,69436.0,69426.0,0.3608]
[1729470306643,0.3608,69430.0,69427.0,0.072035]
[1729470306947,0.3608,69430.0,69424.0,0.072039]
[1729470307750,0.3608,69430.0,69426.0,0.072037]
[1729470307942,0.3608,69430.0,69427.0,0.002]
[1729470308145,0.3608,69430.0,69427.0,0.003]
[1729470308548,0.3608,69430.0,69427.0,0.001]
[1729470308746,0.07203,69433.0,69427.0,0.001]
[1729470309245,0.072023,69440.0,69427.0,0.001]
[1729470309450,0.3608,69435.0,69427.0,0.001]
[1729470309648,0.3608,69435.0,69424.0,0.075038]
[1729470309649,0.07203,69433.0,69424.0,0.075038]
[1729470310150,0.07203,69433.0,69427.0,0.002]
[1729470310539,0.3608,69435.0,69427.0,0.002]
[1729470310745,0.072031,69432.0,69427.0,0.002]
[1729470310941,0.072031,69432.0,69426.0,0.072036]
[1729470311544,0.003,69433.0,69426.0,0.072036]
[1729470311747,0.002,69433.0,69426.0,0.072036]
[1729470312141,0.0252077,69433.0,69416.0,0.3608]
[1729470312345,0.002,69433.0,69426.0,0.072036]
[1729470312546,0.002,69433.0,69417.0,0.072045]
[1729470312845,0.002,69433.0,69416.0,0.3608]
[1729470312846,0.002,69433.0,69426.0,0.072037]
[1729470313041,0.072029,69434.0,69426.0,0.072037]
[1729470313350,0.001,69433.0,69422.0,0.3608]
[1729470313658,0.072034,69429.0,69422.0,0.3608]
[1729470313953,0.001,69433.0,69422.0,0.3608]
[1729470313954,0.003,69433.0,69422.0,0.3608]
[1729470314156,0.002,69433.0,69422.0,0.3608]
[1729470314453,0.074029,69434.0,69422.0,0.3608]
[1729470314647,0.002,69433.0,69422.0,0.3608]
[1729470314951,0.002,69433.0,69425.0,0.072038]
[1729470315252,0.002,69433.0,69422.0,0.3608]
[1729470315445,0.002,69433.0,69425.0,0.072038]
[1729470316351,0.002,69434.0,69422.0,0.3608]
[1729470316550,0.072033,69430.0,69422.0,0.3608]
[1729470316959,0.0378,69429.0,69422.0,0.3608]
[1729470317251,0.432837,69426.0,69417.0,0.072045]
[1729470317451,0.432837,69426.0,69418.0,0.10804085]
[1729470317751,0.432837,69426.0,69417.0,0.072045]
[1729470317752,0.072038,69425.0,69419.0,0.10804085]
[1729470317945,0.3608,69426.0,69422.0,0.001]
[1729470318146,0.07204,69423.0,69422.0,0.001]
[1729470318341,0.07204,69423.0,69422.0,0.004]
[1729470318546,1.57204,69423.0,69422.0,0.004]
[1729470318748,1.5,69423.0,69422.0,0.004]
[1729470318954,0.3837085,69435.0,69422.0,0.47264566]
[1729470319257,0.4557365,69435.0,69428.0,0.072034]
[1729470319649,0.3837085,69435.0,69428.0,0.072034]
[1729470320253,0.3867085,69435.0,69428.0,0.072034]
[1729470320653,0.3887085,69435.0,69428.0,0.072034]
[1729470320850,0.072029,69434.0,69423.0,0.072039]
[1729470321055,0.072029,69434.0,69426.0,0.07122109]
[1729470321242,0.3887085,69435.0,69428.0,0.072035]
[1729470322845,0.3867085,69435.0,69426.0,0.07122109]
[1729470323051,0.07203,69433.0,69426.0,0.072037]
[1729470324255,0.07503,69433.0,69426.0,0.072037]
[1729470324764,0.07703,69433.0,69426.0,0.072037]
[1729470325950,0.005,69433.0,69432.0,0.07203]
[1729470327259,0.3608,69449.0,69432.0,0.97243935]
[1729470327557,0.3608,69449.0,69445.0,0.072016]
[1729470327863,0.3608,69449.0,69448.0,0.072014]
[1729470329051,0.3628,69449.0,69448.0,0.072014]
[1729470329265,0.3658,69449.0,69448.0,0.072014]
[1729470329758,0.005,69449.0,69448.0,0.072014]
[1729470329960,1.5,69455.0,69449.0,0.072013]
[1729470330163,0.001,69455.0,69449.0,0.072013]
[1729470330460,0.38310569,69459.0,69449.0,0.072013]
[1729470330461,0.02230569,69459.0,69449.0,0.072013]
[1729470330662,1.5,69458.0,69449.0,0.072013]
[1729470330865,1.572004,69458.0,69449.0,0.072013]
[1729470331167,1.5,69458.0,69449.0,0.072013]
[1729470332163,0.00516055,69450.0,69449.0,0.072013]
[1729470332751,0.00516055,69450.0,69449.0,0.109213]
[1729470332957,0.003,69450.0,69449.0,0.109213]
[1729470333553,0.005,69450.0,69449.0,0.109213]
[1729470333752,1.5,69465.0,69449.0,0.109213]
[1729470333953,0.40115989,69466.0,69455.0,0.3608]
[1729470333954,0.36295989,69466.0,69455.0,0.3608]
[1729470334155,0.36295989,69466.0,69449.0,0.0372]
[1729470334156,0.071975,69486.0,69479.0,0.071981]
[1729470334357,0.3608,69490.0,69475.0,0.3608]
[1729470334577,1.5,69489.0,69484.0,0.071976]
[1729470335163,0.3608,69490.0,69475.0,0.3608]
[1729470335365,0.3608,69490.0,69486.0,0.071974]
[1729470335564,0.1094168,69502.0,69491.0,0.071969]
[1729470335752,0.1094168,69502.0,69488.0,0.3608]
[1729470335753,1.5,69501.0,69488.0,0.3608]
[1729470335952,0.071962,69498.0,69488.0,0.3608]
[1729470336354,0.001,69490.0,69488.0,0.3608]
[1729470336658,0.001,69490.0,69483.0,0.071977]
[1729470337265,0.071966,69495.0,69483.0,0.071977]
[1729470337662,0.3618,69498.0,69482.0,0.3608]
[1729470337860,0.3618,69498.0,69474.0,0.0353]
[1729470337861,0.071975,69486.0,69474.0,0.107287]
[1729470338061,0.071975,69486.0,69476.0,0.071984]
[1729470338968,0.3608,69488.0,69474.0,0.0353]
[1729470339355,0.071977,69484.0,69474.0,0.0353]
[1729470339556,0.003,69486.0,69473.0,0.3608]
[1729470339768,0.3608,69478.0,69467.0,0.03772]
[1729470340064,0.071988,69473.0,69467.0,0.037]
[1729470341165,0.071988,69473.0,69466.0,0.072795]
[1729470341166,0.071988,69473.0,69466.0,0.071995]
[1729470341365,0.071988,69474.0,69464.0,0.3608]
[1729470341567,0.071988,69473.0,69464.0,0.432796]
[1729470341763,0.071988,69473.0,69464.0,0.3608]
[1729470341960,0.071988,69473.0,69465.0,0.071995]
[1729470342164,1.5,69472.0,69467.0,0.012]
[1729470342868,1.5,69472.0,69471.0,0.07199]
[1729470343063,0.001,69473.0,69472.0,0.071989]
[1729470343372,0.071977,69485.0,69471.0,0.3608]
[1729470343567,0.071977,69485.0,69476.0,0.071984]
[1729470343762,1.5,69484.0,69479.0,0.071981]
[1729470344359,1.5,69484.0,69470.0,0.071991]
[1729470344666,1.5,69484.0,69472.0,0.071989]
[1729470344667,0.071982,69479.0,69472.0,0.071989]
[1729470345972,0.071982,69479.0,69464.0,0.3608]
[1729470345973,0.3608,69481.0,69467.0,0.071994]
[1729470346175,0.071986,69475.0,69470.0,0.3608]
[1729470346470,0.071986,69475.0,69464.0,0.3608]
[1729470346674,0.071986,69475.0,69469.0,0.071992]
[1729470348669,0.004,69475.0,69469.0,0.071992]
[1729470348872,0.004,69475.0,69464.0,0.3608]
[1729470348873,0.071993,69468.0,69464.0,0.3608]
[1729470349078,0.004,69475.0,69464.0,0.3608]
[1729470349777,0.071988,69473.0,69468.0,0.071993]
[1729470350078,0.004,69475.0,69468.0,0.071993]
[1729470350079,0.003,69475.0,69468.0,0.071993]
[1729470350382,0.001,69468.0,69464.0,0.438797]
[1729470351078,1.5,69467.0,69464.0,0.438797]
[1729470351286,0.001,69468.0,69464.0,0.438797]
[1729470351879,0.071992,69469.0,69468.0,0.001]
[1729470352475,0.071992,69469.0,69465.0,0.071996]
[1729470353471,0.071992,69469.0,69468.0,0.006]
[1729470354473,0.3608,69471.0,69468.0,0.006]
[1729470354967,0.3608,69471.0,69468.0,0.002]
[1729470355170,1.501,69474.0,69471.0,0.071989]
[1729470355370,0.0391,69477.0,69473.0,0.071988]
[1729470355577,0.0391,69477.0,69475.0,0.071986]
[1729470356572,0.0391,69477.0,69468.0,0.05643219]
[1729470356785,0.0431,69477.0,69467.0,0.05643219]
[1729470356984,0.0431,69477.0,69472.0,0.071989]
[1729470357975,0.0431,69477.0,69468.0,0.05643219]
[1729470358270,0.071988,69473.0,69468.0,0.05643219]
[1729470358472,0.0431,69477.0,69467.0,0.05643219]
[1729470358473,0.3608,69474.0,69467.0,0.05643219]
[1729470358672,0.071991,69471.0,69465.0,0.05643219]
[1729470358885,0.3608,69474.0,69466.0,0.05643219]
[1729470359069,0.071991,69470.0,69466.0,0.05643219]
[1729470359377,0.3608,69474.0,69466.0,0.05643219]
[1729470359378,0.432787,69474.0,69466.0,0.05643219]
[1729470359582,0.003,69473.0,69464.0,0.48994919]
[1729470359781,0.004,69473.0,69464.0,0.48922919]
[1729470359983,0.004,69473.0,69465.0,0.05643219]
[1729470360385,0.004,69473.0,69465.0,0.12842819]
[1729470360581,0.004,69473.0,69466.0,0.05643219]
[1729470361284,0.072988,69473.0,69467.0,0.05643219]
[1729470361482,0.003,69470.0,69468.0,0.05643219]
[1729470361878,0.07199,69471.0,69468.0,0.05643219]
[1729470362085,0.07199,69471.0,69469.0,0.05643219]
[1729470363177,0.07299,69471.0,69470.0,0.05643219]
[1729470364285,0.07299,69471.0,69469.0,0.05643219]
[1729470365076,0.07299,69471.0,69470.0,0.05643219]
[1729470365385,0.071991,69470.0,69469.0,0.05681912]
[1729470365974,0.004,69471.0,69470.0,0.071991]
[1729470366177,0.004,69471.0,69470.0,0.14319002]
[1729470366494,0.004,69471.0,69470.0,0.24968469]
[1729470366679,0.001,69471.0,69470.0,0.24968469]
[1729470367190,0.001,69471.0,69470.0,0.17848567]
[1729470367485,0.004,69471.0,69470.0,0.17848567]
[1729470368884,0.0378,69491.0,69486.0,0.071974]
[1729470368885,0.0377,69491.0,69486.0,0.071974]
[1729470369177,0.432759,69501.0,69491.0,0.071969]